[Event "Late-Titled-Tuesday-Blitz-June-04-2024"]
[Site "Chess.com"]
[Date "2024.06.04"]
[Round "1"]
[White "Flawless_Fighter"]
[Black "WilliamAlfaroCaracas"]
[Result "1-0"]
[WhiteElo "2672"]
[BlackElo "2355"]
[TimeControl "180+1"]
[EndTime "14:05:34 PDT"]
[Termination "Flawless_Fighter won on time"]

1. d4 {[%clk 0:02:59.8]} 1... Nf6 {[%clk 0:02:59.3]} 2. Nf3 {[%clk 0:02:59.7]}
2... g6 {[%clk 0:02:58.7]} 3. g3 {[%clk 0:02:59.6]} 3... Bg7 {[%clk 0:02:56.7]}
4. Bg2 {[%clk 0:03:00.1]} 4... d5 {[%clk 0:02:56.8]} 5. O-O {[%clk 0:02:59.8]}
5... O-O {[%clk 0:02:56.2]} 6. Bf4 {[%clk 0:02:58.9]} 6... c6 {[%clk 0:02:42.3]}
7. c3 {[%clk 0:02:57.8]} 7... a5 {[%clk 0:02:39.8]} 8. Nbd2 {[%clk 0:02:57.1]}
8... a4 {[%clk 0:02:37.4]} 9. Re1 {[%clk 0:02:56.4]} 9... Bf5 {[%clk 0:02:01.9]}
10. Nh4 {[%clk 0:02:56.1]} 10... Bd7 {[%clk 0:01:55.8]} 11. e4 {[%clk
0:02:51.8]} 11... dxe4 {[%clk 0:01:53.1]} 12. Nxe4 {[%clk 0:02:52.4]} 12... Na6
{[%clk 0:01:50.6]} 13. Nxf6+ {[%clk 0:02:50.5]} 13... Bxf6 {[%clk 0:01:48.8]}
14. Nf3 {[%clk 0:02:50.9]} 14... Nc7 {[%clk 0:01:42.5]} 15. Ne5 {[%clk
0:02:49.6]} 15... Be6 {[%clk 0:01:38.4]} 16. Ng4 {[%clk 0:02:47.5]} 16... Bg7
{[%clk 0:01:35.2]} 17. a3 {[%clk 0:02:40.7]} 17... Qc8 {[%clk 0:01:30.3]} 18.
Ne5 {[%clk 0:02:38.1]} 18... Bh3 {[%clk 0:01:28.4]} 19. Bxh3 {[%clk 0:02:35.5]}
19... Qxh3 {[%clk 0:01:26.7]} 20. Nxc6 {[%clk 0:02:25.5]} 20... bxc6 {[%clk
0:00:39.5]} 21. Bxc7 {[%clk 0:02:25.2]} 21... Qd7 {[%clk 0:00:40.4]} 22. Be5
{[%clk 0:02:24.8]} 22... Rfd8 {[%clk 0:00:38.3]} 23. Qf3 {[%clk 0:02:22.6]}
23... Ra5 {[%clk 0:00:30.4]} 24. Bxg7 {[%clk 0:02:15.9]} 24... Kxg7 {[%clk
0:00:31.3]} 25. Re2 {[%clk 0:02:16.4]} 25... e6 {[%clk 0:00:26.2]} 26. h4 {[%clk
0:02:14.5]} 26... Rb5 {[%clk 0:00:24]} 27. Rd1 {[%clk 0:02:13.8]} 27... h5
{[%clk 0:00:18]} 28. Rdd2 {[%clk 0:02:13.7]} 28... Rd5 {[%clk 0:00:14.9]} 29.
Qf4 {[%clk 0:02:05]} 29... c5 {[%clk 0:00:14]} 30. Re4 {[%clk 0:02:03.4]} 30...
e5 {[%clk 0:00:09.6]} 31. Rxe5 {[%clk 0:02:02.3]} 31... cxd4 {[%clk 0:00:08]}
32. Rxd5 {[%clk 0:02:02.3]} 32... Qxd5 {[%clk 0:00:06.7]} 33. Rxd4 {[%clk
0:02:02.8]} 33... Qa8 {[%clk 0:00:06.8]} 34. Qe5+ {[%clk 0:02:02.7]} 34... Kg8
{[%clk 0:00:05.7]} 35. Rxd8+ {[%clk 0:02:00.8]} 35... Qxd8 {[%clk 0:00:06.6]}
36. Qd4 {[%clk 0:02:01.5]} 36... Qe8 {[%clk 0:00:02.9]} 37. c4 {[%clk
0:01:58.1]} 1-0

[Event "Late-Titled-Tuesday-Blitz-June-04-2024"]
[Site "Chess.com"]
[Date "2024.06.04"]
[Round "1"]
[White "azzbrn"]
[Black "MITerryble"]
[Result "0-1"]
[WhiteElo "2510"]
[BlackElo "3031"]
[TimeControl "180+1"]
[EndTime "14:05:49 PDT"]
[Termination "MITerryble won by resignation"]

1. e4 {[%clk 0:03:00.9]} 1... e6 {[%clk 0:02:44.2]} 2. d4 {[%clk 0:03:00.6]}
2... d5 {[%clk 0:02:44.4]} 3. e5 {[%clk 0:03:01]} 3... c5 {[%clk 0:02:44.2]} 4.
c3 {[%clk 0:03:01.5]} 4... Qb6 {[%clk 0:02:44.4]} 5. Nf3 {[%clk 0:03:01.7]} 5...
Bd7 {[%clk 0:02:44.7]} 6. a3 {[%clk 0:03:01.7]} 6... Bb5 {[%clk 0:02:44.6]} 7.
Bd3 {[%clk 0:02:40.9]} 7... Bxd3 {[%clk 0:02:43.3]} 8. Qxd3 {[%clk 0:02:41.8]}
8... Qa6 {[%clk 0:02:42.6]} 9. Qxa6 {[%clk 0:02:38.1]} 9... Nxa6 {[%clk
0:02:42.5]} 10. b4 {[%clk 0:02:38.8]} 10... cxd4 {[%clk 0:02:42.1]} 11. cxd4
{[%clk 0:02:39.7]} 11... Rc8 {[%clk 0:02:42.2]} 12. Nbd2 {[%clk 0:02:08.7]}
12... Nb8 {[%clk 0:02:26.3]} 13. Bb2 {[%clk 0:01:31.3]} 13... Ne7 {[%clk
0:02:20.5]} 14. Ke2 {[%clk 0:01:18.6]} 14... Kd7 {[%clk 0:02:02.3]} 15. Rac1
{[%clk 0:01:13]} 15... f6 {[%clk 0:02:02.4]} 16. Nb3 {[%clk 0:01:11.7]} 16... b6
{[%clk 0:02:02.4]} 17. b5 {[%clk 0:01:06.5]} 17... Ng6 {[%clk 0:02:02.4]} 18. g3
{[%clk 0:00:57.4]} 18... Be7 {[%clk 0:02:02.4]} 19. h4 {[%clk 0:00:54.5]} 19...
h5 {[%clk 0:02:02.4]} 20. exf6 {[%clk 0:00:42.2]} 20... gxf6 {[%clk 0:02:02.5]}
21. Rhe1 {[%clk 0:00:37.1]} 21... Bd6 {[%clk 0:02:00.4]} 22. Kd2 {[%clk
0:00:30]} 22... Ke7 {[%clk 0:01:51.2]} 23. Rxc8 {[%clk 0:00:27]} 23... Rxc8
{[%clk 0:01:50.8]} 24. Rc1 {[%clk 0:00:27.7]} 24... Rf8 {[%clk 0:01:47.2]} 25.
a4 {[%clk 0:00:22.8]} 25... e5 {[%clk 0:01:46.6]} 26. Re1 {[%clk 0:00:21.6]}
26... e4 {[%clk 0:01:46]} 27. Nh2 {[%clk 0:00:19.6]} 27... f5 {[%clk 0:01:45.5]}
28. Nf1 {[%clk 0:00:18.9]} 28... f4 {[%clk 0:01:45]} 29. a5 {[%clk 0:00:18.3]}
29... fxg3 {[%clk 0:01:24.7]} 30. fxg3 {[%clk 0:00:16.6]} 30... Bb4+ {[%clk
0:01:25.2]} 31. Bc3 {[%clk 0:00:13.1]} 31... Rf2+ {[%clk 0:01:25.6]} 32. Re2
{[%clk 0:00:09.4]} 32... Bxc3+ {[%clk 0:01:25.5]} 0-1

[Event "Late-Titled-Tuesday-Blitz-June-04-2024"]
[Site "Chess.com"]
[Date "2024.06.04"]
[Round "1"]
[White "AlexeiShirov"]
[Black "pavelalexandru07"]
[Result "1-0"]
[WhiteElo "2902"]
[BlackElo "2477"]
[TimeControl "180+1"]
[EndTime "14:05:51 PDT"]
[Termination "AlexeiShirov won on time"]

1. e4 {[%clk 0:03:00.9]} 1... c5 {[%clk 0:03:00.2]} 2. Nf3 {[%clk 0:02:58.1]}
2... d6 {[%clk 0:03:00.3]} 3. d4 {[%clk 0:02:57.5]} 3... cxd4 {[%clk 0:03:00.5]}
4. Nxd4 {[%clk 0:02:58.1]} 4... Nf6 {[%clk 0:03:01]} 5. Nc3 {[%clk 0:02:58.5]}
5... a6 {[%clk 0:03:00.9]} 6. Be3 {[%clk 0:02:58.4]} 6... e5 {[%clk 0:03:00.8]}
7. Nb3 {[%clk 0:02:58.3]} 7... Be6 {[%clk 0:03:00.6]} 8. f3 {[%clk 0:02:57.5]}
8... h5 {[%clk 0:03:00.7]} 9. Nd5 {[%clk 0:02:56.3]} 9... Bxd5 {[%clk
0:03:00.2]} 10. exd5 {[%clk 0:02:55.3]} 10... Nbd7 {[%clk 0:03:00.9]} 11. Be2
{[%clk 0:02:47.5]} 11... g6 {[%clk 0:03:00.5]} 12. Qd2 {[%clk 0:02:45]} 12...
Bg7 {[%clk 0:02:50.8]} 13. Na5 {[%clk 0:02:41.1]} 13... O-O {[%clk 0:02:48.6]}
14. c4 {[%clk 0:02:32.2]} 14... e4 {[%clk 0:02:22.8]} 15. O-O {[%clk 0:02:26.3]}
15... exf3 {[%clk 0:02:18.6]} 16. gxf3 {[%clk 0:02:24.6]} 16... Qc7 {[%clk
0:01:58.2]} 17. b4 {[%clk 0:02:20.1]} 17... Rfe8 {[%clk 0:01:52.4]} 18. Rac1
{[%clk 0:02:14.8]} 18... b6 {[%clk 0:01:30.3]} 19. Nc6 {[%clk 0:02:13.3]} 19...
Nb8 {[%clk 0:01:29.2]} 20. c5 {[%clk 0:02:04.2]} 20... bxc5 {[%clk 0:01:21.3]}
21. bxc5 {[%clk 0:02:03.4]} 21... Nxd5 {[%clk 0:01:03.8]} 22. Qxd5 {[%clk
0:01:51.1]} 22... Qxc6 {[%clk 0:00:53.2]} 23. Bc4 {[%clk 0:01:47.7]} 23... Rxe3
{[%clk 0:00:42.9]} 24. Qxf7+ {[%clk 0:01:46.2]} 24... Kh7 {[%clk 0:00:40.2]} 25.
Bd5 {[%clk 0:01:44]} 25... Qc8 {[%clk 0:00:28]} 26. cxd6 {[%clk 0:01:38]} 26...
Qd8 {[%clk 0:00:23.7]} 27. Rc7 {[%clk 0:01:33.9]} 27... Qg5+ {[%clk 0:00:05.3]}
28. Kh1 {[%clk 0:01:32.9]} 28... Qe5 {[%clk 0:00:05]} 29. Rg1 {[%clk 0:01:20.6]}
1-0

[Event "Late-Titled-Tuesday-Blitz-June-04-2024"]
[Site "Chess.com"]
[Date "2024.06.04"]
[Round "1"]
[White "jinbojinbo"]
[Black "Kapitan_Bayan"]
[Result "1-0"]
[WhiteElo "2669"]
[BlackElo "2353"]
[TimeControl "180+1"]
[EndTime "14:05:52 PDT"]
[Termination "jinbojinbo won by resignation"]

1. c4 {[%clk 0:02:58.8]} 1... e5 {[%clk 0:02:59.1]} 2. Nc3 {[%clk 0:02:58.8]}
2... Nf6 {[%clk 0:02:59.2]} 3. g3 {[%clk 0:02:57.4]} 3... Bb4 {[%clk 0:02:56.4]}
4. Bg2 {[%clk 0:02:50.1]} 4... O-O {[%clk 0:02:56.1]} 5. Qc2 {[%clk 0:02:46.4]}
5... Re8 {[%clk 0:02:54.5]} 6. e3 {[%clk 0:02:45.5]} 6... c6 {[%clk 0:02:52.9]}
7. Nge2 {[%clk 0:02:37.6]} 7... d5 {[%clk 0:02:48.5]} 8. cxd5 {[%clk 0:02:34.3]}
8... cxd5 {[%clk 0:02:48.6]} 9. d4 {[%clk 0:02:31.5]} 9... e4 {[%clk 0:02:41.2]}
10. O-O {[%clk 0:02:30.5]} 10... Nc6 {[%clk 0:02:39.3]} 11. a3 {[%clk
0:02:29.3]} 11... Bf8 {[%clk 0:02:34.8]} 12. b4 {[%clk 0:02:27.1]} 12... Be6
{[%clk 0:02:27.2]} 13. Bd2 {[%clk 0:02:13.2]} 13... Rc8 {[%clk 0:02:26]} 14.
Rfc1 {[%clk 0:02:13.3]} 14... Qd7 {[%clk 0:02:23.4]} 15. Nf4 {[%clk 0:02:00.3]}
15... Bf5 {[%clk 0:02:20.1]} 16. Qa2 {[%clk 0:01:56.5]} 16... Red8 {[%clk
0:02:00.9]} 17. b5 {[%clk 0:01:55]} 17... Ne7 {[%clk 0:01:47.6]} 18. Qb3 {[%clk
0:01:47.7]} 18... g5 {[%clk 0:01:42.5]} 19. Nfe2 {[%clk 0:01:47.7]} 19... h5
{[%clk 0:01:40.3]} 20. f4 {[%clk 0:01:13.7]} 20... exf3 {[%clk 0:01:36.1]} 21.
Bxf3 {[%clk 0:01:13.3]} 21... h4 {[%clk 0:01:11.5]} 22. Rf1 {[%clk 0:00:54.7]}
22... Bd3 {[%clk 0:00:59.4]} 23. Nxd5 {[%clk 0:00:48.2]} 23... Nexd5 {[%clk
0:00:55.4]} 24. Qxd3 {[%clk 0:00:48.1]} 24... g4 {[%clk 0:00:49.5]} 25. Bh1
{[%clk 0:00:46.1]} 25... h3 {[%clk 0:00:46.5]} 26. e4 {[%clk 0:00:44.1]} 1-0

[Event "Late-Titled-Tuesday-Blitz-June-04-2024"]
[Site "Chess.com"]
[Date "2024.06.04"]
[Round "1"]
[White "Legit"]
[Black "SuanTiltado"]
[Result "1-0"]
[WhiteElo "2773"]
[BlackElo "2432"]
[TimeControl "180+1"]
[EndTime "14:05:53 PDT"]
[Termination "Legit won by resignation"]

1. d4 {[%clk 0:03:00.1]} 1... d5 {[%clk 0:02:57.8]} 2. Nf3 {[%clk 0:02:58.8]}
2... Nf6 {[%clk 0:02:53]} 3. c4 {[%clk 0:02:58.9]} 3... e6 {[%clk 0:02:53.6]} 4.
g3 {[%clk 0:02:59.1]} 4... dxc4 {[%clk 0:02:52.6]} 5. Bg2 {[%clk 0:02:45.3]}
5... c5 {[%clk 0:02:50.7]} 6. O-O {[%clk 0:02:29.1]} 6... Nc6 {[%clk 0:02:50.5]}
7. Qa4 {[%clk 0:02:26.6]} 7... Bd7 {[%clk 0:02:49.9]} 8. Qxc4 {[%clk 0:02:22.5]}
8... b5 {[%clk 0:02:49.4]} 9. Qd3 {[%clk 0:02:21.8]} 9... c4 {[%clk 0:02:49.8]}
10. Qd1 {[%clk 0:02:16.2]} 10... Rc8 {[%clk 0:02:48.1]} 11. Bf4 {[%clk
0:02:13.3]} 11... Nd5 {[%clk 0:02:46.2]} 12. Nc3 {[%clk 0:02:08]} 12... Nxf4
{[%clk 0:02:43.9]} 13. gxf4 {[%clk 0:02:08.9]} 13... b4 {[%clk 0:02:44.4]} 14.
Ne4 {[%clk 0:02:04.7]} 14... Be7 {[%clk 0:02:43.5]} 15. Qc2 {[%clk 0:02:01.8]}
15... Na5 {[%clk 0:02:21.8]} 16. e3 {[%clk 0:01:52.6]} 16... O-O {[%clk
0:02:19.7]} 17. Rfd1 {[%clk 0:01:30.1]} 17... Bc6 {[%clk 0:02:14.5]} 18. Neg5
{[%clk 0:01:17.2]} 18... g6 {[%clk 0:02:11]} 19. h4 {[%clk 0:01:12.5]} 19... h6
{[%clk 0:02:06.7]} 20. Nxe6 {[%clk 0:01:11.2]} 20... fxe6 {[%clk 0:02:01.3]} 21.
Qxg6+ {[%clk 0:01:11.1]} 21... Kh8 {[%clk 0:02:01.8]} 22. Qxh6+ {[%clk
0:01:11.6]} 22... Kg8 {[%clk 0:02:02.2]} 23. Qg6+ {[%clk 0:01:10.4]} 23... Kh8
{[%clk 0:02:01.7]} 24. Ng5 {[%clk 0:01:10.8]} 24... Bxg5 {[%clk 0:01:56.6]} 25.
hxg5 {[%clk 0:01:11.7]} 25... Qe8 {[%clk 0:01:53.6]} 26. Qh6+ {[%clk 0:01:06.3]}
26... Kg8 {[%clk 0:01:53.6]} 27. Bxc6 {[%clk 0:00:59.9]} 27... Rxc6 {[%clk
0:01:46.9]} 28. g6 {[%clk 0:00:51.2]} 28... Qe7 {[%clk 0:01:40]} 29. d5 {[%clk
0:00:47.9]} 29... exd5 {[%clk 0:01:32.3]} 30. Rxd5 {[%clk 0:00:48.8]} 30... Rff6
{[%clk 0:01:05.7]} 31. Rd8+ {[%clk 0:00:38.5]} 31... Qxd8 {[%clk 0:01:03.1]} 32.
Qh7+ {[%clk 0:00:38.9]} 32... Kf8 {[%clk 0:01:02.1]} 33. g7+ {[%clk 0:00:39.8]}
1-0

[Event "Late-Titled-Tuesday-Blitz-June-04-2024"]
[Site "Chess.com"]
[Date "2024.06.04"]
[Round "1"]
[White "Mackster23"]
[Black "glebus008"]
[Result "1-0"]
[WhiteElo "2673"]
[BlackElo "2367"]
[TimeControl "180+1"]
[EndTime "14:05:58 PDT"]
[Termination "Mackster23 won by checkmate"]

1. e4 {[%clk 0:03:00.9]} 1... Nc6 {[%clk 0:02:58.6]} 2. d4 {[%clk 0:03:00.5]}
2... d5 {[%clk 0:02:58]} 3. e5 {[%clk 0:03:00.8]} 3... f6 {[%clk 0:02:57.4]} 4.
f4 {[%clk 0:02:57.6]} 4... Bf5 {[%clk 0:02:56.2]} 5. c3 {[%clk 0:02:55]} 5... e6
{[%clk 0:02:56.3]} 6. Nd2 {[%clk 0:02:54.4]} 6... Be7 {[%clk 0:02:55.9]} 7. Ngf3
{[%clk 0:02:45.3]} 7... Nh6 {[%clk 0:02:55.7]} 8. Be2 {[%clk 0:02:27.3]} 8...
O-O {[%clk 0:02:55.4]} 9. O-O {[%clk 0:02:26.9]} 9... fxe5 {[%clk 0:02:49.6]}
10. fxe5 {[%clk 0:02:25.9]} 10... Bg4 {[%clk 0:02:49.4]} 11. h3 {[%clk
0:02:20.3]} 11... Bxf3 {[%clk 0:02:45.4]} 12. Nxf3 {[%clk 0:02:18.5]} 12... Nf5
{[%clk 0:02:45.4]} 13. Kh2 {[%clk 0:02:14]} 13... Qe8 {[%clk 0:02:45.1]} 14. Bd3
{[%clk 0:02:00.3]} 14... Qd8 {[%clk 0:02:12.6]} 15. Bd2 {[%clk 0:01:52.1]} 15...
Bh4 {[%clk 0:02:06]} 16. Nxh4 {[%clk 0:01:43.4]} 16... Qxh4 {[%clk 0:02:06.9]}
17. Qg4 {[%clk 0:01:28.1]} 17... Qxg4 {[%clk 0:02:01]} 18. hxg4 {[%clk 0:01:29]}
18... Nh4 {[%clk 0:01:58.2]} 19. Kg3 {[%clk 0:01:25.9]} 19... Ng6 {[%clk
0:01:56.9]} 20. Rh1 {[%clk 0:01:22.4]} 20... Nce7 {[%clk 0:01:52]} 21. Rh5
{[%clk 0:01:17]} 21... Rf7 {[%clk 0:01:50.5]} 22. Rah1 {[%clk 0:01:16]} 22... h6
{[%clk 0:01:50.6]} 23. g5 {[%clk 0:01:09.8]} 23... hxg5 {[%clk 0:01:15.8]} 24.
Bxg5 {[%clk 0:01:07.7]} 24... Nf5+ {[%clk 0:01:07.2]} 25. Kg4 {[%clk 0:01:01.8]}
25... Raf8 {[%clk 0:01:02.5]} 26. g3 {[%clk 0:00:53.8]} 26... b6 {[%clk
0:01:02]} 27. Bd2 {[%clk 0:00:45.2]} 27... c5 {[%clk 0:00:56.9]} 28. Kg5 {[%clk
0:00:39.9]} 28... Nxg3 {[%clk 0:00:37.6]} 29. Rh8+ {[%clk 0:00:39.1]} 29... Nxh8
{[%clk 0:00:36.9]} 30. Bh7# {[%clk 0:00:40]} 1-0

[Event "Late-Titled-Tuesday-Blitz-June-04-2024"]
[Site "Chess.com"]
[Date "2024.06.04"]
[Round "1"]
[White "Charodej1"]
[Black "gmcorrales"]
[Result "0-1"]
[WhiteElo "2469"]
[BlackElo "2892"]
[TimeControl "180+1"]
[EndTime "14:06:00 PDT"]
[Termination "gmcorrales won by resignation"]

1. e4 {[%clk 0:03:00.5]} 1... c5 {[%clk 0:02:55.9]} 2. Nf3 {[%clk 0:03:00.1]}
2... d6 {[%clk 0:02:55.6]} 3. d4 {[%clk 0:03:00.5]} 3... cxd4 {[%clk 0:02:55.1]}
4. Nxd4 {[%clk 0:03:01.1]} 4... Nf6 {[%clk 0:02:54.3]} 5. Nc3 {[%clk 0:03:01.6]}
5... g6 {[%clk 0:02:51.4]} 6. Be3 {[%clk 0:03:00]} 6... Bg7 {[%clk 0:02:51.2]}
7. f3 {[%clk 0:03:00.2]} 7... Nc6 {[%clk 0:02:50.7]} 8. Qd2 {[%clk 0:03:00.1]}
8... O-O {[%clk 0:01:49.1]} 9. Bc4 {[%clk 0:02:52.1]} 9... Nxd4 {[%clk
0:01:48.4]} 10. Bxd4 {[%clk 0:02:51.8]} 10... Be6 {[%clk 0:01:47.6]} 11. Bb3
{[%clk 0:02:48.1]} 11... Qa5 {[%clk 0:01:29.3]} 12. O-O-O {[%clk 0:02:13.8]}
12... Bxb3 {[%clk 0:01:28.8]} 13. cxb3 {[%clk 0:02:12.8]} 13... Rfd8 {[%clk
0:01:28.8]} 14. Kb1 {[%clk 0:02:06.1]} 14... e6 {[%clk 0:01:29.5]} 15. Bxf6
{[%clk 0:01:47.3]} 15... Bxf6 {[%clk 0:01:28.7]} 16. Nd5 {[%clk 0:01:47.8]}
16... Qxd2 {[%clk 0:01:28.5]} 17. Nxf6+ {[%clk 0:01:47.9]} 17... Kg7 {[%clk
0:01:29.1]} 18. Nh5+ {[%clk 0:01:48.1]} 18... gxh5 {[%clk 0:01:28.3]} 19. Rxd2
{[%clk 0:01:48.2]} 19... Kf6 {[%clk 0:01:26.7]} 20. f4 {[%clk 0:01:39.6]} 20...
Rd7 {[%clk 0:01:24.5]} 21. Rhd1 {[%clk 0:01:38.1]} 21... Ke7 {[%clk 0:01:24]}
22. Rd3 {[%clk 0:01:35.1]} 22... Rg8 {[%clk 0:01:23.7]} 23. g3 {[%clk
0:01:30.7]} 23... h4 {[%clk 0:01:24]} 24. b4 {[%clk 0:01:27.3]} 24... h5 {[%clk
0:01:23.9]} 25. a4 {[%clk 0:01:15.8]} 25... hxg3 {[%clk 0:01:15.9]} 26. hxg3
{[%clk 0:01:15.7]} 26... h4 {[%clk 0:01:10.9]} 27. Rg1 {[%clk 0:00:59.3]} 27...
Rg4 {[%clk 0:01:10.2]} 28. Rf3 {[%clk 0:00:50.2]} 28... Rc7 {[%clk 0:01:08.7]}
29. b3 {[%clk 0:00:49.3]} 29... Rc8 {[%clk 0:01:06.5]} 30. Rd1 {[%clk
0:00:40.3]} 30... Rxg3 {[%clk 0:01:02.2]} 31. Rxg3 {[%clk 0:00:36.5]} 31... hxg3
{[%clk 0:01:03.1]} 32. Rg1 {[%clk 0:00:37]} 32... Rc3 {[%clk 0:01:02.6]} 33. Kb2
{[%clk 0:00:35.8]} 33... Rf3 {[%clk 0:01:02.6]} 34. Rg2 {[%clk 0:00:34.3]} 34...
Rf2+ {[%clk 0:00:58.2]} 0-1

[Event "Late-Titled-Tuesday-Blitz-June-04-2024"]
[Site "Chess.com"]
[Date "2024.06.04"]
[Round "1"]
[White "The_Sherman_Variation"]
[Black "Niteshch"]
[Result "0-1"]
[WhiteElo "2590"]
[BlackElo "2332"]
[TimeControl "180+1"]
[EndTime "14:06:00 PDT"]
[Termination "Niteshch won by resignation"]

1. b3 {[%clk 0:02:57.6]} 1... e5 {[%clk 0:02:59.6]} 2. Bb2 {[%clk 0:02:57.6]}
2... Nc6 {[%clk 0:03:00]} 3. e3 {[%clk 0:02:58.2]} 3... d5 {[%clk 0:02:59.7]} 4.
Bb5 {[%clk 0:02:58.8]} 4... Bd6 {[%clk 0:02:50.5]} 5. Nf3 {[%clk 0:02:59.1]}
5... f6 {[%clk 0:02:00.7]} 6. O-O {[%clk 0:02:47.8]} 6... a6 {[%clk 0:01:55.4]}
7. Bxc6+ {[%clk 0:02:47.6]} 7... bxc6 {[%clk 0:01:55.5]} 8. d4 {[%clk
0:02:47.3]} 8... e4 {[%clk 0:01:54.7]} 9. Nfd2 {[%clk 0:02:48]} 9... f5 {[%clk
0:01:44.3]} 10. c4 {[%clk 0:02:45.5]} 10... Nf6 {[%clk 0:01:39]} 11. f4 {[%clk
0:02:41.1]} 11... O-O {[%clk 0:01:32.6]} 12. h3 {[%clk 0:02:38.7]} 12... Kh8
{[%clk 0:01:27.6]} 13. Nc3 {[%clk 0:02:35]} 13... Rg8 {[%clk 0:01:23]} 14. Ne2
{[%clk 0:02:21.2]} 14... Nh5 {[%clk 0:01:14.7]} 15. Qe1 {[%clk 0:02:18.8]} 15...
g5 {[%clk 0:01:14]} 16. c5 {[%clk 0:02:17.3]} 16... Be7 {[%clk 0:01:10.1]} 17.
fxg5 {[%clk 0:02:14.7]} 17... Bxg5 {[%clk 0:01:09.5]} 18. Nf4 {[%clk 0:02:14.8]}
18... Bh4 {[%clk 0:01:03.8]} 19. Nxh5 {[%clk 0:01:58.5]} 19... Bxe1 {[%clk
0:01:01.2]} 20. Raxe1 {[%clk 0:01:59.4]} 20... f4 {[%clk 0:00:56.6]} 21. Nxf4
{[%clk 0:01:56.2]} 21... Qh4 {[%clk 0:00:54.8]} 22. Kh1 {[%clk 0:01:31.1]} 22...
Bd7 {[%clk 0:00:53.3]} 23. Nxe4 {[%clk 0:01:26.6]} 23... Raf8 {[%clk 0:00:41.4]}
24. Nd2 {[%clk 0:01:22.1]} 24... Rxf4 {[%clk 0:00:34.1]} 25. exf4 {[%clk
0:01:00.5]} 25... Bxh3 {[%clk 0:00:33.5]} 26. g3 {[%clk 0:00:52.3]} 26... Bg2+
{[%clk 0:00:24.7]} 27. Kg1 {[%clk 0:00:50.5]} 27... Qxg3 {[%clk 0:00:22.8]} 0-1

[Event "Late-Titled-Tuesday-Blitz-June-04-2024"]
[Site "Chess.com"]
[Date "2024.06.04"]
[Round "1"]
[White "snowlord"]
[Black "Larax"]
[Result "1-0"]
[WhiteElo "2926"]
[BlackElo "2497"]
[TimeControl "180+1"]
[EndTime "14:06:01 PDT"]
[Termination "snowlord won by resignation"]

1. d4 {[%clk 0:03:00]} 1... d5 {[%clk 0:03:00]} 2. c4 {[%clk 0:02:59.3]} 2...
dxc4 {[%clk 0:03:00]} 3. Nf3 {[%clk 0:02:59]} 3... Nf6 {[%clk 0:02:59]} 4. Na3
{[%clk 0:02:57.8]} 4... e6 {[%clk 0:02:52.9]} 5. Nxc4 {[%clk 0:02:57.9]} 5... c5
{[%clk 0:02:46]} 6. g3 {[%clk 0:02:49.9]} 6... Nc6 {[%clk 0:02:46]} 7. Bg2
{[%clk 0:02:48.8]} 7... cxd4 {[%clk 0:02:45.2]} 8. O-O {[%clk 0:02:49.1]} 8...
Bc5 {[%clk 0:02:35.5]} 9. a3 {[%clk 0:02:47.6]} 9... a5 {[%clk 0:02:21.3]} 10.
Bg5 {[%clk 0:02:42]} 10... O-O {[%clk 0:02:19.6]} 11. Rc1 {[%clk 0:02:35]} 11...
Be7 {[%clk 0:02:12.3]} 12. Qb3 {[%clk 0:02:32]} 12... a4 {[%clk 0:02:07.7]} 13.
Qb5 {[%clk 0:02:24.6]} 13... Nd5 {[%clk 0:01:49]} 14. Bxe7 {[%clk 0:02:23.1]}
14... Qxe7 {[%clk 0:01:49.6]} 15. Rfd1 {[%clk 0:02:17.5]} 15... Bd7 {[%clk
0:01:37.8]} 16. Nb6 {[%clk 0:01:57.8]} 16... Ra5 {[%clk 0:00:16.1]} 17. Nxd5
{[%clk 0:01:55.9]} 17... Rxb5 {[%clk 0:00:15.5]} 18. Nxe7+ {[%clk 0:01:56.3]}
18... Nxe7 {[%clk 0:00:15.7]} 19. Rc7 {[%clk 0:01:53.1]} 19... Rd8 {[%clk
0:00:10]} 20. Rxd4 {[%clk 0:01:10.5]} 20... Nd5 {[%clk 0:00:10]} 21. Rc2 {[%clk
0:01:11]} 21... Nb6 {[%clk 0:00:10.7]} 22. Ne1 {[%clk 0:00:59.7]} 22... e5
{[%clk 0:00:09]} 23. Rd6 {[%clk 0:00:58.5]} 23... Nc8 {[%clk 0:00:03.9]} 24.
Rxd7 {[%clk 0:00:57.3]} 1-0

[Event "Late-Titled-Tuesday-Blitz-June-04-2024"]
[Site "Chess.com"]
[Date "2024.06.04"]
[Round "1"]
[White "Synctel"]
[Black "Love7Unicorn"]
[Result "0-1"]
[WhiteElo "2066"]
[BlackElo "2537"]
[TimeControl "180+1"]
[EndTime "14:06:04 PDT"]
[Termination "Love7Unicorn won on time"]

1. d4 {[%clk 0:02:57.6]} 1... Nf6 {[%clk 0:02:55.3]} 2. Nf3 {[%clk 0:02:57.3]}
2... b6 {[%clk 0:02:55.2]} 3. e3 {[%clk 0:02:57.4]} 3... Bb7 {[%clk 0:02:55.2]}
4. Bd3 {[%clk 0:02:58]} 4... d6 {[%clk 0:02:55.5]} 5. Nbd2 {[%clk 0:02:58.7]}
5... Nbd7 {[%clk 0:02:56.2]} 6. O-O {[%clk 0:02:53.3]} 6... e5 {[%clk
0:02:56.3]} 7. e4 {[%clk 0:02:48.9]} 7... a5 {[%clk 0:02:51.4]} 8. a4 {[%clk
0:02:39.9]} 8... g6 {[%clk 0:02:40.6]} 9. dxe5 {[%clk 0:02:29.3]} 9... dxe5
{[%clk 0:02:40.1]} 10. Nc4 {[%clk 0:02:24.6]} 10... Qe7 {[%clk 0:02:31.3]} 11.
b3 {[%clk 0:02:23.7]} 11... Bg7 {[%clk 0:02:16.1]} 12. Ba3 {[%clk 0:02:19.7]}
12... Nc5 {[%clk 0:02:15.6]} 13. Nfxe5 {[%clk 0:02:08.7]} 13... O-O {[%clk
0:01:54.7]} 14. Re1 {[%clk 0:01:53.3]} 14... Nh5 {[%clk 0:01:32.1]} 15. Bb2
{[%clk 0:01:33.9]} 15... Rad8 {[%clk 0:01:17.5]} 16. Qf3 {[%clk 0:00:58.5]}
16... f5 {[%clk 0:00:53.7]} 17. Qe3 {[%clk 0:00:02.3]} 17... fxe4 {[%clk
0:00:44]} 18. Be2 {[%clk 0:00:02.6]} 18... Nf4 {[%clk 0:00:44]} 0-1